[Event "Early-Titled-Tuesday-Blitz-May-14-2024"]
[Site "Chess.com"]
[Date "2024.05.14"]
[Round "1"]
[White "Aryan_Tamadon"]
[Black "Gareth-Bale11"]
[Result "0-1"]
[WhiteElo "2523"]
[BlackElo "2923"]
[TimeControl "180+1"]
[EndTime "8:08:36 PDT"]
[Termination "Gareth-Bale11 won on time"]

1. Nf3 {[%clk 0:03:00.9]} 1... d5 {[%clk 0:02:57.6]} 2. g3 {[%clk 0:02:59.9]}
2... g6 {[%clk 0:02:57.7]} 3. Bg2 {[%clk 0:03:00.6]} 3... Bg7 {[%clk 0:02:58.4]}
4. O-O {[%clk 0:03:01.3]} 4... e5 {[%clk 0:02:58.2]} 5. d3 {[%clk 0:03:00.4]}
5... Nc6 {[%clk 0:02:58.5]} 6. c3 {[%clk 0:02:57.5]} 6... a5 {[%clk 0:02:57.8]}
7. Qc2 {[%clk 0:02:56.7]} 7... Nf6 {[%clk 0:02:54.6]} 8. e4 {[%clk 0:02:56.4]}
8... O-O {[%clk 0:02:52.9]} 9. a4 {[%clk 0:02:49.2]} 9... Re8 {[%clk 0:02:52.2]}
10. Na3 {[%clk 0:02:48.5]} 10... h6 {[%clk 0:02:51]} 11. b3 {[%clk 0:02:37.4]}
11... Be6 {[%clk 0:02:43.3]} 12. Re1 {[%clk 0:02:31.5]} 12... Qc8 {[%clk
0:02:34.6]} 13. Nb5 {[%clk 0:02:24.9]} 13... dxe4 {[%clk 0:02:16]} 14. dxe4
{[%clk 0:02:25]} 14... b6 {[%clk 0:02:16.5]} 15. Bb2 {[%clk 0:02:18.5]} 15...
Nd7 {[%clk 0:02:12.6]} 16. Ba3 {[%clk 0:02:02.7]} 16... Nc5 {[%clk 0:02:10.6]}
17. Bxc5 {[%clk 0:01:56]} 17... bxc5 {[%clk 0:02:11.5]} 18. Nd2 {[%clk
0:01:55.1]} 18... h5 {[%clk 0:02:06.9]} 19. Nf1 {[%clk 0:01:38.3]} 19... Bh6
{[%clk 0:01:55.7]} 20. Ne3 {[%clk 0:01:25.3]} 20... Bxe3 {[%clk 0:01:55.1]} 21.
Rxe3 {[%clk 0:01:22.7]} 21... c4 {[%clk 0:01:55.3]} 22. bxc4 {[%clk 0:01:15.9]}
22... Bxc4 {[%clk 0:01:56.2]} 23. Na3 {[%clk 0:01:07.3]} 23... Be6 {[%clk
0:01:55.7]} 24. Bf1 {[%clk 0:01:07.8]} 24... h4 {[%clk 0:01:54]} 25. Bb5 {[%clk
0:01:05.7]} 25... Qb7 {[%clk 0:01:50.2]} 26. Rb1 {[%clk 0:00:59.9]} 26... Red8
{[%clk 0:01:48.1]} 27. Rd3 {[%clk 0:00:45.9]} 27... Rxd3 {[%clk 0:01:45.9]} 28.
Qxd3 {[%clk 0:00:46.8]} 28... h3 {[%clk 0:01:33.4]} 29. g4 {[%clk 0:00:34.3]}
29... Bxg4 {[%clk 0:01:01.3]} 30. Qd5 {[%clk 0:00:33.2]} 30... Ra6 {[%clk
0:00:30.6]} 31. Bxc6 {[%clk 0:00:15.7]} 31... Qxc6 {[%clk 0:00:30]} 32. Rb8+
{[%clk 0:00:16.6]} 32... Kg7 {[%clk 0:00:21.5]} 33. Qxe5+ {[%clk 0:00:16]} 33...
Qf6 {[%clk 0:00:21.1]} 34. Qe8 {[%clk 0:00:16.5]} 34... Kh6 {[%clk 0:00:17.2]}
35. f4 {[%clk 0:00:07.5]} 35... Re6 {[%clk 0:00:14.4]} 36. Qf8+ {[%clk
0:00:06.2]} 36... Qg7 {[%clk 0:00:14.8]} 37. e5 {[%clk 0:00:05.3]} 37... Qxf8
{[%clk 0:00:13.6]} 38. Rxf8 {[%clk 0:00:06.2]} 38... Kg7 {[%clk 0:00:14.5]} 39.
Rc8 {[%clk 0:00:06.2]} 39... Rb6 {[%clk 0:00:11.9]} 40. Rxc7 {[%clk 0:00:05.5]}
40... Rb2 {[%clk 0:00:11.9]} 41. Nc4 {[%clk 0:00:03.8]} 41... Rg2+ {[%clk
0:00:12.2]} 42. Kf1 {[%clk 0:00:04.5]} 42... Rxh2 {[%clk 0:00:10.6]} 43. Nd6
{[%clk 0:00:04.9]} 43... Be6 {[%clk 0:00:10.3]} 44. Ne8+ {[%clk 0:00:04.6]}
44... Kh6 {[%clk 0:00:09.5]} 45. Nf6 {[%clk 0:00:04.5]} 45... g5 {[%clk
0:00:06.3]} 46. f5 {[%clk 0:00:04]} 46... Bxf5 {[%clk 0:00:06.9]} 47. Rxf7
{[%clk 0:00:04.7]} 47... Kg6 {[%clk 0:00:07.1]} 48. Rf8 {[%clk 0:00:05]} 48...
Rg2 {[%clk 0:00:06]} 49. Rh8 {[%clk 0:00:04.5]} 49... g4 {[%clk 0:00:06.2]} 50.
Rg8+ {[%clk 0:00:02.7]} 50... Kf7 {[%clk 0:00:06.3]} 51. Rh8 {[%clk 0:00:03]}
51... Bd3+ {[%clk 0:00:06.2]} 52. Ke1 {[%clk 0:00:03.1]} 52... h2 {[%clk
0:00:07.1]} 53. Nxg4 {[%clk 0:00:02.6]} 53... Rxg4 {[%clk 0:00:07.2]} 54. Rxh2
{[%clk 0:00:02.7]} 54... Ke6 {[%clk 0:00:07.7]} 55. Kd2 {[%clk 0:00:02.9]} 55...
Bf5 {[%clk 0:00:07]} 56. Rh6+ {[%clk 0:00:02.6]} 56... Kxe5 {[%clk 0:00:07.4]}
57. Ra6 {[%clk 0:00:01.6]} 57... Rxa4 {[%clk 0:00:07.9]} 58. Kc1 {[%clk
0:00:00.8]} 58... Bd3 {[%clk 0:00:07.1]} 0-1

[Event "Early-Titled-Tuesday-Blitz-May-14-2024"]
[Site "Chess.com"]
[Date "2024.05.14"]
[Round "1"]
[White "SHIVACalypso"]
[Black "Chess4always"]
[Result "1-0"]
[WhiteElo "2560"]
[BlackElo "2030"]
[TimeControl "180+1"]
[EndTime "8:08:36 PDT"]
[Termination "SHIVACalypso won by resignation"]

1. e4 {[%clk 0:02:58.4]} 1... c6 {[%clk 0:02:59.7]} 2. d4 {[%clk 0:02:57.8]}
2... d5 {[%clk 0:03:00.6]} 3. Nc3 {[%clk 0:02:56.4]} 3... dxe4 {[%clk
0:03:00.8]} 4. Nxe4 {[%clk 0:02:57.3]} 4... Nf6 {[%clk 0:03:01.1]} 5. Nxf6+
{[%clk 0:02:56.6]} 5... gxf6 {[%clk 0:03:02]} 6. Be3 {[%clk 0:02:53.6]} 6... Bf5
{[%clk 0:03:02.5]} 7. Qd2 {[%clk 0:02:51.6]} 7... Nd7 {[%clk 0:03:03]} 8. Ne2
{[%clk 0:02:51.3]} 8... e6 {[%clk 0:03:03.3]} 9. h4 {[%clk 0:02:48.6]} 9... h5
{[%clk 0:03:02.6]} 10. Ng3 {[%clk 0:02:47.9]} 10... Bg6 {[%clk 0:03:02.7]} 11.
Bd3 {[%clk 0:02:45.2]} 11... Bxd3 {[%clk 0:03:02.8]} 12. Qxd3 {[%clk 0:02:46.1]}
12... Bd6 {[%clk 0:03:02.3]} 13. Ne4 {[%clk 0:02:43.7]} 13... Be7 {[%clk
0:02:57.7]} 14. O-O-O {[%clk 0:02:43.1]} 14... f5 {[%clk 0:02:57.7]} 15. Ng5
{[%clk 0:02:41.7]} 15... Bxg5 {[%clk 0:02:58.1]} 16. Bxg5 {[%clk 0:02:41.4]}
16... Qa5 {[%clk 0:02:58.7]} 17. Kb1 {[%clk 0:02:39.5]} 17... f6 {[%clk
0:02:56.6]} 18. Bf4 {[%clk 0:02:34.4]} 18... O-O-O {[%clk 0:02:57.1]} 19. Rhe1
{[%clk 0:02:33.7]} 19... Rde8 {[%clk 0:02:46.2]} 20. Qc4 {[%clk 0:02:17]} 20...
Qd5 {[%clk 0:02:44.5]} 21. Qxd5 {[%clk 0:02:16.6]} 21... cxd5 {[%clk 0:02:45]}
22. c3 {[%clk 0:02:13]} 22... Nb6 {[%clk 0:02:45.4]} 23. Kc2 {[%clk 0:02:11.6]}
23... Kd7 {[%clk 0:02:45.8]} 24. Re2 {[%clk 0:02:12]} 24... Rhg8 {[%clk
0:02:46.3]} 25. g3 {[%clk 0:02:11.9]} 25... Nc4 {[%clk 0:02:45.1]} 26. Rde1
{[%clk 0:02:11.6]} 26... Rg4 {[%clk 0:02:41.9]} 27. b3 {[%clk 0:02:09.7]} 27...
Nd6 {[%clk 0:02:42.3]} 28. Bxd6 {[%clk 0:02:09.1]} 28... Kxd6 {[%clk 0:02:43.2]}
29. Kd3 {[%clk 0:02:08.7]} 29... e5 {[%clk 0:02:43.1]} 30. dxe5+ {[%clk
0:01:55.5]} 30... fxe5 {[%clk 0:02:44]} 31. Kd2 {[%clk 0:01:44.8]} 31... d4
{[%clk 0:02:39.7]} 32. cxd4 {[%clk 0:01:20.8]} 32... Rxd4+ {[%clk 0:02:40.6]}
33. Kc3 {[%clk 0:01:21.5]} 33... Rc8+ {[%clk 0:02:39.7]} 34. Kb2 {[%clk
0:01:21.6]} 34... Rd5 {[%clk 0:02:33]} 35. Rc2 {[%clk 0:01:18.1]} 35... Rxc2+
{[%clk 0:02:31.4]} 36. Kxc2 {[%clk 0:01:19]} 36... e4 {[%clk 0:02:31.9]} 37. Re3
{[%clk 0:01:15.6]} 37... Ke5 {[%clk 0:02:32.1]} 38. Rc3 {[%clk 0:01:13.4]} 38...
f4 {[%clk 0:02:27.7]} 39. Rc7 {[%clk 0:01:11.1]} 39... fxg3 {[%clk 0:02:23.2]}
40. fxg3 {[%clk 0:01:12]} 40... Rb5 {[%clk 0:02:22.1]} 41. Kd2 {[%clk
0:01:01.6]} 41... Rd5+ {[%clk 0:02:12.5]} 42. Ke2 {[%clk 0:01:00.1]} 42... Rb5
{[%clk 0:02:09.4]} 43. Rg7 {[%clk 0:00:49.5]} 43... Kf6 {[%clk 0:02:06.2]} 44.
Rh7 {[%clk 0:00:49.8]} 44... a5 {[%clk 0:01:57.3]} 45. Ke3 {[%clk 0:00:47.9]}
45... Kg6 {[%clk 0:01:57.5]} 46. Re7 {[%clk 0:00:46]} 46... a4 {[%clk
0:01:57.5]} 47. bxa4 {[%clk 0:00:43.4]} 47... Rb2 {[%clk 0:01:48.9]} 48. Rxe4
{[%clk 0:00:42.3]} 48... Rxa2 {[%clk 0:01:48.3]} 49. Rb4 {[%clk 0:00:42]} 49...
Ra3+ {[%clk 0:01:40.4]} 50. Kf4 {[%clk 0:00:41.9]} 50... Kf6 {[%clk 0:01:12]}
51. Rb6+ {[%clk 0:00:41.2]} 51... Ke7 {[%clk 0:01:12.5]} 52. Rxb7+ {[%clk
0:00:41.8]} 52... Kd6 {[%clk 0:01:13.2]} 53. Rb4 {[%clk 0:00:40.3]} 53... Kc5
{[%clk 0:01:12.9]} 54. Re4 {[%clk 0:00:40.3]} 54... Kd6 {[%clk 0:01:09.9]} 55.
Rb4 {[%clk 0:00:34.4]} 55... Kc5 {[%clk 0:01:09.5]} 56. Rb5+ {[%clk 0:00:34.7]}
56... Kc6 {[%clk 0:01:08.1]} 57. Rxh5 {[%clk 0:00:34.4]} 57... Rxa4+ {[%clk
0:01:08.4]} 58. Kg5 {[%clk 0:00:33.6]} 58... Kd6 {[%clk 0:01:09]} 59. Rh6+
{[%clk 0:00:29.6]} 59... Ke7 {[%clk 0:01:09.5]} 60. h5 {[%clk 0:00:26.4]} 60...
Kf7 {[%clk 0:01:09.6]} 61. Rb6 {[%clk 0:00:26.2]} 61... Ra5+ {[%clk 0:01:07.3]}
62. Kh4 {[%clk 0:00:26]} 62... Kg7 {[%clk 0:01:07.9]} 63. g4 {[%clk 0:00:25.9]}
63... Ra1 {[%clk 0:01:08.4]} 64. Rb7+ {[%clk 0:00:25.6]} 64... Kg8 {[%clk
0:01:08.2]} 65. h6 {[%clk 0:00:25.5]} 65... Ra5 {[%clk 0:01:05.1]} 66. g5 {[%clk
0:00:25.2]} 66... Kh8 {[%clk 0:01:05.8]} 67. Kh5 {[%clk 0:00:25.4]} 67... Ra6
{[%clk 0:01:05.4]} 68. Rb5 {[%clk 0:00:20.4]} 68... Ra8 {[%clk 0:00:55.7]} 69.
g6 {[%clk 0:00:20.1]} 69... Rg8 {[%clk 0:00:55.2]} 70. Rf5 {[%clk 0:00:18.5]}
70... Rd8 {[%clk 0:00:52.7]} 71. g7+ {[%clk 0:00:09.5]} 71... Kh7 {[%clk
0:00:52.2]} 72. Rf8 {[%clk 0:00:07.1]} 72... Rd5+ {[%clk 0:00:34.5]} 73. Kg4
{[%clk 0:00:06.1]} 73... Rg5+ {[%clk 0:00:31.9]} 74. Kf4 {[%clk 0:00:04.7]}
74... Kxh6 {[%clk 0:00:25.9]} 75. Rf6+ {[%clk 0:00:04.8]} 75... Kh7 {[%clk
0:00:19.1]} 76. Kxg5 {[%clk 0:00:04.2]} 76... Kxg7 {[%clk 0:00:18.3]} 77. Ra6
{[%clk 0:00:03.9]} 1-0

[Event "Early-Titled-Tuesday-Blitz-May-14-2024"]
[Site "Chess.com"]
[Date "2024.05.14"]
[Round "1"]
[White "A4RookA3"]
[Black "Incognito_Knight"]
[Result "1/2-1/2"]
[WhiteElo "2434"]
[BlackElo "2752"]
[TimeControl "180+1"]
[EndTime "8:08:39 PDT"]
[Termination "Game drawn - insufficient material"]

1. e4 {[%clk 0:02:09.9]} 1... c5 {[%clk 0:02:54]} 2. Nf3 {[%clk 0:02:09.6]} 2...
e6 {[%clk 0:02:53.7]} 3. d4 {[%clk 0:02:08.7]} 3... cxd4 {[%clk 0:02:52.2]} 4.
Nxd4 {[%clk 0:02:09.6]} 4... a6 {[%clk 0:02:52.8]} 5. c4 {[%clk 0:02:07.8]} 5...
Nf6 {[%clk 0:02:52.5]} 6. Nc3 {[%clk 0:02:07.6]} 6... Qc7 {[%clk 0:02:52.7]} 7.
a3 {[%clk 0:02:07.3]} 7... b6 {[%clk 0:02:53.3]} 8. Be3 {[%clk 0:02:00.8]} 8...
Bb7 {[%clk 0:02:53.3]} 9. f3 {[%clk 0:02:00.3]} 9... d6 {[%clk 0:02:53.7]} 10.
Be2 {[%clk 0:01:59.3]} 10... Nbd7 {[%clk 0:02:54.1]} 11. O-O {[%clk 0:01:59.7]}
11... Be7 {[%clk 0:02:54.7]} 12. Qd2 {[%clk 0:01:59.1]} 12... O-O {[%clk
0:02:54.8]} 13. Rfd1 {[%clk 0:01:58.5]} 13... Rac8 {[%clk 0:02:55]} 14. Rac1
{[%clk 0:01:58.4]} 14... Rfe8 {[%clk 0:02:55.6]} 15. b4 {[%clk 0:01:57.5]} 15...
Qb8 {[%clk 0:02:55.8]} 16. Nb3 {[%clk 0:01:55.8]} 16... Bd8 {[%clk 0:02:39.4]}
17. g3 {[%clk 0:01:45]} 17... Bc7 {[%clk 0:02:33.2]} 18. Bf4 {[%clk 0:01:28.2]}
18... Ne5 {[%clk 0:02:23.7]} 19. Bxe5 {[%clk 0:01:26.3]} 19... dxe5 {[%clk
0:02:24.6]} 20. c5 {[%clk 0:01:24.3]} 20... b5 {[%clk 0:02:02.5]} 21. Qe3 {[%clk
0:01:18.6]} 21... Bc6 {[%clk 0:01:59.9]} 22. Rd2 {[%clk 0:01:18.5]} 22... Red8
{[%clk 0:01:43.6]} 23. Rcd1 {[%clk 0:01:18.4]} 23... Rxd2 {[%clk 0:01:42.4]} 24.
Rxd2 {[%clk 0:01:19.3]} 24... Rd8 {[%clk 0:01:42.7]} 25. Rxd8+ {[%clk
0:01:19.2]} 25... Qxd8 {[%clk 0:01:43.6]} 26. Qd3 {[%clk 0:01:19.3]} 26... Qxd3
{[%clk 0:01:23.5]} 27. Bxd3 {[%clk 0:01:20.2]} 27... Nd7 {[%clk 0:01:24.1]} 28.
Nd2 {[%clk 0:00:57.9]} 28... Nb8 {[%clk 0:01:15.7]} 29. Kf2 {[%clk 0:00:55.2]}
29... Kf8 {[%clk 0:01:15.4]} 30. Ke3 {[%clk 0:00:53.7]} 30... Ke7 {[%clk
0:01:15.8]} 31. Ke2 {[%clk 0:00:45.7]} 31... g6 {[%clk 0:01:15.7]} 32. Ke3
{[%clk 0:00:44.7]} 32... f5 {[%clk 0:01:11.2]} 33. Ke2 {[%clk 0:00:44.7]} 33...
h5 {[%clk 0:01:00.7]} 34. h3 {[%clk 0:00:42.4]} 34... Kf6 {[%clk 0:00:56.6]} 35.
Kf2 {[%clk 0:00:39.4]} 35... Bd7 {[%clk 0:00:52.1]} 36. Nb3 {[%clk 0:00:34.2]}
36... Nc6 {[%clk 0:00:45.9]} 37. Ne2 {[%clk 0:00:22.5]} 37... Bd8 {[%clk
0:00:40.9]} 38. Ke3 {[%clk 0:00:21.1]} 38... Be8 {[%clk 0:00:35.2]} 39. Kf2
{[%clk 0:00:21.4]} 39... Kf7 {[%clk 0:00:34.5]} 40. Kg2 {[%clk 0:00:21.9]} 40...
h4 {[%clk 0:00:29.4]} 41. g4 {[%clk 0:00:21.4]} 41... Kf6 {[%clk 0:00:26.4]} 42.
Kf2 {[%clk 0:00:20.5]} 42... Kg5 {[%clk 0:00:25.6]} 43. Ke3 {[%clk 0:00:20.2]}
43... Bd7 {[%clk 0:00:25]} 44. Ng1 {[%clk 0:00:18.3]} 44... Bf6 {[%clk
0:00:20.6]} 45. Ne2 {[%clk 0:00:18.4]} 45... Bg7 {[%clk 0:00:20.2]} 46. Kf2
{[%clk 0:00:12.8]} 46... Kf6 {[%clk 0:00:14.6]} 47. Ke1 {[%clk 0:00:11.8]} 47...
Ke7 {[%clk 0:00:13.6]} 48. Kd2 {[%clk 0:00:12]} 48... Nd4 {[%clk 0:00:13]} 49.
Nexd4 {[%clk 0:00:08.7]} 49... exd4 {[%clk 0:00:13.9]} 50. Na5 {[%clk
0:00:08.7]} 50... Bh6+ {[%clk 0:00:09.1]} 51. Ke2 {[%clk 0:00:08.8]} 51... Kd8
{[%clk 0:00:09.1]} 52. exf5 {[%clk 0:00:09.1]} 52... gxf5 {[%clk 0:00:10]} 53.
gxf5 {[%clk 0:00:08.5]} 53... exf5 {[%clk 0:00:10.9]} 54. Nb7+ {[%clk
0:00:07.5]} 54... Kc7 {[%clk 0:00:11.1]} 55. Nd6 {[%clk 0:00:07.8]} 55... Bc1
{[%clk 0:00:03.6]} 56. Nxf5 {[%clk 0:00:04.8]} 56... Bxa3 {[%clk 0:00:03.2]} 57.
Nxh4 {[%clk 0:00:04]} 57... Bxh3 {[%clk 0:00:01.5]} 58. Nf5 {[%clk 0:00:03.1]}
58... Bxb4 {[%clk 0:00:01.4]} 59. Nxd4 {[%clk 0:00:03.7]} 59... Bxc5 {[%clk
0:00:01.9]} 60. Nc2 {[%clk 0:00:04.2]} 60... Be6 {[%clk 0:00:01.8]} 61. f4
{[%clk 0:00:04.7]} 61... b4 {[%clk 0:00:01.8]} 62. f5 {[%clk 0:00:05.6]} 62...
Bf7 {[%clk 0:00:01.9]} 63. Kd2 {[%clk 0:00:04.5]} 63... b3 {[%clk 0:00:02.3]}
64. Ne1 {[%clk 0:00:04.1]} 64... Bb4+ {[%clk 0:00:02]} 65. Kd1 {[%clk
0:00:04.2]} 65... Bxe1 {[%clk 0:00:01.6]} 66. Kxe1 {[%clk 0:00:05.1]} 66... b2
{[%clk 0:00:02.3]} 67. Bb1 {[%clk 0:00:05.5]} 67... Bb3 {[%clk 0:00:02]} 68. Kd2
{[%clk 0:00:06.4]} 68... a5 {[%clk 0:00:02.7]} 69. Kc3 {[%clk 0:00:06.8]} 69...
a4 {[%clk 0:00:02.3]} 70. Kxb2 {[%clk 0:00:07.2]} 70... Kd6 {[%clk 0:00:03.1]}
71. Ka3 {[%clk 0:00:07.7]} 71... Ke7 {[%clk 0:00:03.6]} 72. Bd3 {[%clk
0:00:08.2]} 72... Kf6 {[%clk 0:00:04.1]} 73. Bb5 {[%clk 0:00:09]} 73... Kxf5
{[%clk 0:00:04.7]} 74. Bxa4 {[%clk 0:00:09.9]} 1/2-1/2

[Event "Early-Titled-Tuesday-Blitz-May-14-2024"]
[Site "Chess.com"]
[Date "2024.05.14"]
[Round "1"]
[White "cukus"]
[Black "IlanSchnaider"]
[Result "0-1"]
[WhiteElo "2384"]
[BlackElo "2705"]
[TimeControl "180+1"]
[EndTime "8:08:41 PDT"]
[Termination "IlanSchnaider won by resignation"]

1. e4 {[%clk 0:02:56.8]} 1... e5 {[%clk 0:02:57.4]} 2. Nf3 {[%clk 0:02:56.6]}
2... Nc6 {[%clk 0:02:57.9]} 3. d4 {[%clk 0:02:57.2]} 3... exd4 {[%clk
0:02:57.7]} 4. Nxd4 {[%clk 0:02:58.1]} 4... Nf6 {[%clk 0:02:57.9]} 5. Nxc6
{[%clk 0:02:58.2]} 5... bxc6 {[%clk 0:02:58.5]} 6. Nd2 {[%clk 0:02:58.3]} 6...
d5 {[%clk 0:02:48]} 7. exd5 {[%clk 0:02:59.2]} 7... cxd5 {[%clk 0:02:47.9]} 8.
Bb5+ {[%clk 0:02:59.3]} 8... Bd7 {[%clk 0:02:47.1]} 9. Bxd7+ {[%clk 0:02:59.9]}
9... Qxd7 {[%clk 0:02:47.6]} 10. O-O {[%clk 0:03:00.3]} 10... Be7 {[%clk
0:02:48.2]} 11. Qf3 {[%clk 0:02:59.5]} 11... O-O {[%clk 0:02:48.3]} 12. b3
{[%clk 0:02:59.4]} 12... Bb4 {[%clk 0:02:33.6]} 13. Rd1 {[%clk 0:02:44]} 13...
Rfe8 {[%clk 0:01:50]} 14. Bb2 {[%clk 0:02:41.2]} 14... Re6 {[%clk 0:01:50.3]}
15. Nc4 {[%clk 0:02:07.7]} 15... Rae8 {[%clk 0:01:37.2]} 16. Ne3 {[%clk
0:02:07.5]} 16... Bc5 {[%clk 0:01:28.9]} 17. Bd4 {[%clk 0:01:47.2]} 17... Bxd4
{[%clk 0:01:18.2]} 18. Rxd4 {[%clk 0:01:48.1]} 18... c5 {[%clk 0:01:18.9]} 19.
Rdd1 {[%clk 0:01:43.6]} 19... d4 {[%clk 0:01:19.4]} 20. Nf5 {[%clk 0:01:40.3]}
20... Qd5 {[%clk 0:01:10.5]} 21. Qh3 {[%clk 0:01:06.2]} 21... Qe4 {[%clk
0:01:05.8]} 22. Qd3 {[%clk 0:00:43.9]} 22... Qxd3 {[%clk 0:00:52.3]} 23. cxd3
{[%clk 0:00:44.8]} 23... Nd5 {[%clk 0:00:48.3]} 24. Kf1 {[%clk 0:00:35.1]} 24...
g6 {[%clk 0:00:42.9]} 25. Ng3 {[%clk 0:00:34.6]} 25... h5 {[%clk 0:00:43]} 26.
Ne4 {[%clk 0:00:34.5]} 26... Rc8 {[%clk 0:00:31.4]} 27. Rac1 {[%clk 0:00:34.7]}
27... Rec6 {[%clk 0:00:31.6]} 28. Rc4 {[%clk 0:00:34.9]} 28... Nb6 {[%clk
0:00:21.5]} 29. Rc2 {[%clk 0:00:32.8]} 29... f5 {[%clk 0:00:21.6]} 30. Ng5
{[%clk 0:00:29.7]} 30... Nd5 {[%clk 0:00:20.7]} 31. Re1 {[%clk 0:00:24.3]} 31...
Nb4 {[%clk 0:00:20.6]} 32. Rd2 {[%clk 0:00:22.1]} 32... Kg7 {[%clk 0:00:19.2]}
33. a3 {[%clk 0:00:22]} 33... Nd5 {[%clk 0:00:18.6]} 34. Re5 {[%clk 0:00:20.6]}
34... Nc3 {[%clk 0:00:17]} 35. Re1 {[%clk 0:00:15.3]} 35... Kf6 {[%clk
0:00:16.5]} 36. Nf3 {[%clk 0:00:15.4]} 36... Rb6 {[%clk 0:00:15.2]} 37. Rb2
{[%clk 0:00:14.3]} 37... Rcb8 {[%clk 0:00:15.7]} 38. Ne5 {[%clk 0:00:13.8]}
38... Rxb3 {[%clk 0:00:07.8]} 39. Nd7+ {[%clk 0:00:14]} 39... Kg7 {[%clk
0:00:08]} 40. Rxb3 {[%clk 0:00:13.3]} 40... Rxb3 {[%clk 0:00:08.9]} 41. Nxc5
{[%clk 0:00:13.1]} 41... Rxa3 {[%clk 0:00:09.6]} 42. Re7+ {[%clk 0:00:10.5]}
42... Kf8 {[%clk 0:00:09.9]} 43. Re1 {[%clk 0:00:07.8]} 43... Kf7 {[%clk
0:00:10]} 44. Ne6 {[%clk 0:00:06.5]} 44... Nb5 {[%clk 0:00:07.8]} 45. Nd8+
{[%clk 0:00:06.6]} 45... Kf6 {[%clk 0:00:07]} 46. Nc6 {[%clk 0:00:07.5]} 46...
Rxd3 {[%clk 0:00:06.5]} 47. Rb1 {[%clk 0:00:06.6]} 47... Nc3 {[%clk 0:00:06.5]}
48. Ra1 {[%clk 0:00:04.4]} 48... a6 {[%clk 0:00:06.5]} 49. g3 {[%clk 0:00:03.2]}
49... h4 {[%clk 0:00:06.2]} 50. Rxa6 {[%clk 0:00:03.3]} 50... Rd1+ {[%clk
0:00:03.1]} 51. Kg2 {[%clk 0:00:03.6]} 51... hxg3 {[%clk 0:00:03.8]} 52. hxg3
{[%clk 0:00:03.8]} 52... Kg5 {[%clk 0:00:03.5]} 53. Nb4 {[%clk 0:00:03.6]} 53...
d3 {[%clk 0:00:03.3]} 54. Rd6 {[%clk 0:00:03.9]} 54... d2 {[%clk 0:00:04]} 55.
Nc2 {[%clk 0:00:02.8]} 55... Ne4 {[%clk 0:00:03.9]} 56. Rd4 {[%clk 0:00:01.7]}
56... Rc1 {[%clk 0:00:03.6]} 57. Ne3 {[%clk 0:00:02.3]} 57... Rc3 {[%clk
0:00:02.8]} 58. f3 {[%clk 0:00:02.7]} 58... Nf6 {[%clk 0:00:02.3]} 59. Rxd2
{[%clk 0:00:02.5]} 59... Rxe3 {[%clk 0:00:02.6]} 60. Kf2 {[%clk 0:00:03.4]}
60... Ra3 {[%clk 0:00:02.4]} 61. Rd4 {[%clk 0:00:03.6]} 61... Ra2+ {[%clk
0:00:02.3]} 62. Ke3 {[%clk 0:00:04]} 62... Ra3+ {[%clk 0:00:03.2]} 63. Kf2
{[%clk 0:00:04.4]} 63... Kh6 {[%clk 0:00:04.1]} 64. Rd6 {[%clk 0:00:03.9]} 64...
Nh5 {[%clk 0:00:04.1]} 65. g4 {[%clk 0:00:04]} 65... fxg4 {[%clk 0:00:04.3]} 66.
fxg4 {[%clk 0:00:04.9]} 66... Ng7 {[%clk 0:00:05.2]} 67. Rd5 {[%clk 0:00:03.9]}
67... Ne6 {[%clk 0:00:05.4]} 68. Kg2 {[%clk 0:00:03.8]} 68... Nf4+ {[%clk
0:00:05.6]} 0-1